bitfinex/quotes_ETHUSD_20250827
["timestamp","ask_amount","ask_price","bid_price","bid_amount"]
[1756263938658,12.36990139,4589.3,4589.2,1e-08]
[1756263939380,2.17909822,4589.1,4588.6,0.001]
[1756263939574,11.40218139,4588.7,4588.6,0.001]
[1756263940767,11.40218139,4588.7,4588.6,0.7431]
[1756263940768,5.52035611,4588.7,4588.6,0.7431]
[1756263942980,5.95609776,4588.7,4588.6,0.001]
[1756263944163,5.95609776,4588.7,4588.6,0.7431]
[1756263947150,6.05509776,4588.7,4588.6,0.001]
[1756263947482,13.12509776,4588.7,4588.6,1e-08]
[1756263948265,2.17945644,4588.3,4588.2,1e-08]
[1756263948475,8.53841458,4588.3,4588.2,1e-08]
[1756263948781,8.61047138,4588.3,4588.2,1e-08]
[1756263949006,18.68047138,4588.3,4588.2,1e-08]
[1756263949185,22.77421303,4588.3,4588.2,1e-08]
[1756263951676,16.04535825,4588.3,4588.2,1e-08]
[1756263955596,12.28805825,4588.3,4588.2,0.74210001]
[1756263955801,12.28805825,4588.3,4588.2,0.30120001]
[1756263955970,12.28805825,4588.3,4588.2,0.74210001]
[1756263958407,11.94691303,4588.3,4588.2,0.74210001]
[1756263960709,11.94691303,4588.3,4588.2,0.44090001]
[1756263961408,12.28803128,4588.3,4588.2,0.44090001]
[1756263961602,12.28803128,4588.3,4588.2,1e-08]
[1756263963428,12.28803128,4588.3,4588.2,0.30630001]
[1756263963596,12.28803128,4588.3,4588.2,0.73660001]
[1756263964329,2.17950394,4588.2,4588.1,0.001]
[1756263964478,3.30685264,4588.2,4588.1,0.001]
[1756263964683,2.91610885,4588.2,4588.1,0.001]
[1756263964912,2.91610885,4588.2,4588.1,0.3073]
[1756263965795,2.17964646,4587.9,4587.8,0.021]
[1756263966041,2.28844646,4587.9,4587.8,0.021]
[1756263966314,5.60314646,4587.9,4587.8,0.021]
[1756263966887,6.07544646,4587.9,4587.8,0.021]
[1756263967313,5.60314646,4587.9,4587.8,0.021]
[1756263967514,5.60314646,4587.9,4587.8,0.3273]
[1756263967515,5.91625137,4587.9,4587.8,0.3273]
[1756263967687,5.91625137,4587.9,4587.8,0.7576]
[1756263968015,5.91625137,4587.9,4587.8,0.3273]
[1756263968816,6.23095137,4587.9,4587.8,0.021]
[1756263969003,6.23095137,4587.9,4587.8,1e-08]
[1756263969727,6.70325137,4587.9,4587.8,1e-08]
[1756263971112,6.70325137,4587.9,4587.7,0.001]
[1756263971113,2.17988403,4587.4,4587.3,1e-08]
[1756263971316,2.17988403,4587.4,4587.2,0.001]
[1756263971317,11.40284649,4587.3,4587.2,1e-08]
[1756263971622,12.18984649,4587.3,4587.2,1e-08]
[1756263971833,12.8176514,4587.3,4587.2,1e-08]
[1756263972038,12.92468782,4587.3,4587.2,1e-08]
[1756263972449,12.8176514,4587.3,4587.2,1e-08]
[1756263972594,16.58575791,4587.3,4587.2,1e-08]
[1756263972794,16.4756514,4587.3,4587.2,1e-08]
[1756263975896,16.0033514,4587.3,4587.2,1e-08]
[1756263976920,18.3013514,4587.3,4587.2,1e-08]
[1756263977141,16.0033514,4587.3,4587.2,1e-08]
[1756263978542,16.34456208,4587.3,4587.2,1e-08]
[1756263978703,16.34456208,4587.3,4586.4,0.001]
[1756263978704,2.18026424,4586.6,4586.5,0.001]
[1756263978904,2.28906424,4586.6,4586.5,0.001]
[1756263979144,2.28906424,4586.6,4586.5,0.3073]
[1756263979333,2.28906424,4586.6,4586.5,0.7376]
[1756263979672,5.6302965,4586.6,4586.5,0.3073]
[1756263979873,5.6302965,4586.6,4586.5,0.7376]
[1756263980759,5.9449965,4586.6,4586.5,0.001]
[1756263981275,5.6302965,4586.6,4586.5,0.001]
[1756263981778,5.6302965,4586.6,4586.5,0.3073]
[1756263981978,5.6302965,4586.6,4586.5,0.7376]
[1756263982587,5.6302965,4586.6,4586.5,0.001]
[1756263983133,5.6302965,4586.6,4586.5,0.7376]
[1756263990249,5.6302965,4586.6,4586.5,0.3073]
[1756263990450,5.6302965,4586.6,4586.5,0.7657]
[1756263992591,5.6302965,4586.6,4586.5,0.3073]
[1756263993092,5.9175965,4586.6,4586.5,0.001]
[1756263993762,5.6302965,4586.6,4586.5,0.001]
[1756263993961,5.6302965,4586.6,4586.5,0.3027]
[1756263995312,5.9175965,4586.6,4586.5,0.001]
[1756263995475,6.3785965,4586.6,4586.5,0.001]
[1756263995680,5.6302965,4586.6,4586.5,0.3027]
[1756263996206,2.6302965,4586.6,4586.5,0.7611]
[1756263996808,2.6302965,4586.6,4586.5,0.96490727]
[1756263997820,0.34123226,4586.6,4586.5,0.96490727]
[1756263998108,7.07,4586.7,4586.5,0.96490727]
[1756263998311,7.07,4586.7,4586.6,0.66220727]
[1756263998481,0.1088,4586.9,4586.6,0.96390727]
[1756263998681,2.17993294,4587.3,4586.7,0.66220727]
[1756263998881,2.17993294,4587.3,4586.6,0.3017]
[1756263998882,2.28867108,4587.5,4587.2,0.3017]
[1756263999071,0.1088,4587.5,4587.3,2.33920727]
[1756263999271,0.1088,4587.5,4587.4,0.96390727]
[1756263999680,0.02,4587.8,4587.4,0.96390727]
[1756263999898,0.02,4587.8,4587.5,0.77100727]
[1756264000096,2.17974788,4587.7,4587.6,3.86180727]
[1756264000297,2.17974788,4587.7,4587.6,4.62190727]
[1756264002425,2.17974788,4587.7,4587.6,4.4181]
[1756264002574,2.17978899,4587.6,4587.3,1.677]
[1756264002952,2.17983651,4587.5,4587.4,0.20335469]
[1756264003071,0.2873,4587.4,4587.2,3.658]
[1756264003272,0.1088,4587.3,4587.2,3.658]
[1756264003620,2.18014327,4586.9,4586.6,1.677]
[1756264003914,2.18021671,4586.7,4586.6,5.335]
[1756264004086,2.18021671,4586.7,4586.6,5.84012104]
[1756264004291,2.18021671,4586.7,4586.6,5.6367]
[1756264004613,2.18021671,4586.7,4586.6,5.84011859]
[1756264004920,2.18021671,4586.7,4586.6,5.6367]
[1756264005636,0.1088,4586.8,4586.6,5.6367]
[1756264005833,2.20174065,4587.8,4586.7,0.4584]
[1756264006287,2.18016918,4586.8,4586.7,0.4584]
[1756264006487,2.18016918,4586.8,4586.7,0.7601]
[1756264006992,2.18016918,4586.8,4586.7,4.4171]
[1756264009034,2.18026424,4586.6,4586.0,1.678]
[1756264009326,2.18026424,4586.6,4586.1,3.658]
[1756264009532,2.80880179,4586.6,4586.1,3.658]
[1756264009732,3.26980179,4586.6,4586.1,3.658]
[1756264010041,3.26980179,4586.6,4586.0,1.678]
[1756264010338,3.29705509,4586.6,4586.1,3.658]
[1756264010562,2.80880179,4586.6,4586.2,3.658]
[1756264010711,2.52150179,4586.6,4586.5,0.3027]
[1756264011141,2.80880179,4586.6,4586.5,0.001]
[1756264011325,3.60770111,4586.6,4586.5,3.659]
[1756264011528,4.06870111,4586.6,4586.5,3.659]
[1756264011724,3.60770111,4586.6,4586.5,3.659]
[1756264011963,3.32040111,4586.6,4586.5,3.9607]
[1756264012125,2.52150179,4586.6,4586.5,3.9607]
[1756264012711,2.52150179,4586.6,4586.5,3.659]
[1756264013012,2.80880179,4586.6,4586.5,3.659]
[1756264013356,2.80880179,4586.6,4586.5,3.661]
[1756264013558,3.60770111,4586.6,4586.5,3.661]
[1756264014359,3.32040111,4586.6,4586.5,3.661]
[1756264014525,2.97916356,4586.6,4586.5,3.661]
[1756264015208,0.483,4587.8,4586.5,3.9627]
[1756264015414,2.18026424,4586.6,4586.5,3.9627]
[1756264015643,2.18026424,4586.6,4586.5,3.9617]
[1756264015842,2.28906424,4586.6,4586.5,3.9617]
[1756264016435,2.28906424,4586.6,4586.5,3.66]
[1756264017581,2.28906424,4586.6,4586.5,0.001]
[1756264017948,2.28906424,4586.6,4586.5,3.659]
[1756264018149,2.28906424,4586.6,4586.5,0.3027]
[1756264018564,2.28906424,4586.6,4586.5,3.9607]
[1756264019876,2.59066424,4586.6,4586.5,0.001]
[1756264020074,2.28906424,4586.6,4586.5,3.659]
[1756264020288,2.59066424,4586.6,4586.5,3.659]
[1756264020521,3.15134789,4586.6,4586.5,0.001]
[1756264020779,9.86701613,4586.6,4586.5,0.001]
[1756264020982,12.83976283,4586.6,4586.5,0.001]
[1756264021145,5.18031178,4586.5,4586.4,0.001]
[1756264021346,5.68317469,4586.5,4586.4,0.001]
[1756264021547,5.98477469,4586.5,4586.4,0.001]
[1756264022175,6.45027469,4586.5,4586.4,0.001]
[1756264024878,5.98477469,4586.5,4586.4,0.001]
[1756264025383,6.45027469,4586.5,4586.4,0.001]
[1756264025881,5.68317469,4586.5,4586.4,0.001]
[1756264026071,5.68317469,4586.5,4586.4,0.3026]
[1756264026882,5.98477469,4586.5,4586.4,0.001]
[1756264027183,5.68317469,4586.5,4586.4,0.001]
[1756264027783,6.02443604,4586.5,4586.4,0.001]
[1756264028457,6.02443604,4586.5,4586.4,0.3026]
[1756264028784,6.02443604,4586.5,4586.4,0.001]
[1756264029288,6.79153604,4586.5,4586.4,0.001]
[1756264030185,6.32603604,4586.5,4586.4,0.001]
[1756264032081,6.02443604,4586.5,4586.4,0.001]
[1756264032972,6.02443604,4586.5,4586.4,0.7343]
[1756264033383,6.32603604,4586.5,4586.4,0.001]
[1756264033586,6.79153604,4586.5,4586.4,0.001]
[1756264035465,6.32603604,4586.5,4586.4,0.001]
[1756264035669,6.02443604,4586.5,4586.4,0.3026]
[1756264035864,6.02443604,4586.5,4586.0,0.001]
[1756264035865,2.18035932,4586.4,4586.0,0.001]
[1756264036083,3.23379746,4586.4,4586.0,0.001]
[1756264036380,3.61694297,4586.4,4586.0,0.001]
[1756264037075,3.64419746,4586.4,4586.0,0.001]
[1756264037498,5.94219746,4586.4,4586.0,0.001]
[1756264037701,3.61694297,4586.4,4586.0,0.001]
[1756264040167,6.61694297,4586.4,4586.0,0.001]
[1756264040372,13.68694297,4586.4,4586.0,0.001]
[1756264042721,17.36194297,4586.4,4586.0,0.001]
[1756264042870,13.68694297,4586.4,4586.0,0.001]
[1756264044404,13.22144297,4586.4,4586.0,0.001]
[1756264046511,13.68694297,4586.4,4586.0,0.001]
[1756264047413,13.22144297,4586.4,4586.0,0.001]
[1756264049020,12.91984297,4586.4,4586.0,0.001]
[1756264049237,12.91984297,4586.4,4586.3,0.77530001]
[1756264049728,12.91984297,4586.4,4586.3,0.30380001]
[1756264051618,12.91984297,4586.4,4586.3,1e-08]
[1756264052317,13.22854297,4586.4,4586.3,1e-08]
[1756264053411,12.91984297,4586.4,4586.3,1e-08]
[1756264053719,13.22854297,4586.4,4586.3,1e-08]
[1756264055893,12.91984297,4586.4,4586.3,1e-08]
[1756264057233,13.22854297,4586.4,4586.3,1e-08]
[1756264057393,13.66144297,4586.4,4586.3,1e-08]
[1756264057793,17.32944297,4586.4,4586.3,1e-08]
[1756264058129,17.32944297,4586.4,4585.9,0.001]
[1756264058130,2.18052566,4586.1,4584.6,1.678]
[1756264058447,11.51245464,4585.6,4585.5,1e-08]
[1756264058640,22.55915464,4585.6,4585.5,1e-08]
[1756264058832,22.99205464,4585.6,4585.5,1e-08]
[1756264059556,22.25045464,4585.6,4585.5,0.30380001]
[1756264059841,19.14313829,4585.6,4585.5,0.30380001]
[1756264060010,19.14313829,4585.6,4585.5,1e-08]
[1756264060433,12.38183829,4585.6,4585.5,1e-08]
[1756264060748,12.81473829,4585.6,4585.5,1e-08]
[1756264061424,12.72318944,4585.6,4585.5,1e-08]
[1756264062242,12.41448944,4585.6,4585.5,1e-08]
[1756264062447,12.41448944,4585.6,4585.5,0.30380001]
[1756264064053,6.1915745,4585.6,4585.5,0.30380001]
[1756264064239,6.1915745,4585.6,4585.5,0.77530001]
[1756264064547,6.1915745,4585.6,4585.5,0.30380001]
[1756264065445,6.1915745,4585.6,4585.5,1e-08]
[1756264065755,5.85022335,4585.6,4585.5,1e-08]
[1756264066242,6.15892335,4585.6,4585.5,1e-08]
[1756264066622,5.85022335,4585.6,4585.5,1e-08]
[1756264067630,6.15892335,4585.6,4585.5,1e-08]
[1756264068531,6.19156388,4585.6,4585.5,1e-08]
[1756264069430,6.19156388,4585.6,4585.5,0.30380001]
[1756264071648,6.19156388,4585.6,4585.5,1e-08]
[1756264071849,6.50026388,4585.6,4585.5,1e-08]
[1756264073030,6.19156388,4585.6,4585.5,1e-08]
[1756264073264,6.93316388,4585.6,4585.5,1e-08]
[1756264073852,6.50026388,4585.6,4585.5,1e-08]
[1756264074054,6.93316388,4585.6,4585.5,1e-08]
[1756264074672,7.59316388,4585.6,4585.5,1e-08]
[1756264074966,11.40389245,4585.1,4585.0,0.001]
[1756264075167,15.67955536,4585.1,4585.0,0.001]
[1756264075416,15.98825536,4585.1,4585.0,0.001]
[1756264075561,16.42115536,4585.1,4585.0,0.001]
[1756264076918,15.98825536,4585.1,4585.0,0.001]
[1756264077191,16.42115536,4585.1,4585.0,0.001]
[1756264077773,2.18107265,4584.9,4584.8,0.02]
[1756264077974,8.87333605,4584.9,4584.8,0.02]
[1756264078199,9.63077265,4584.9,4584.8,0.02]
[1756264078583,2.18121537,4584.6,4584.5,0.001]
[1756264078785,11.40413031,4584.6,4584.5,0.001]
[1756264078992,12.21969322,4584.6,4584.5,0.001]
[1756264079385,12.32849322,4584.6,4584.5,0.001]
[1756264079586,12.66990367,4584.6,4584.5,0.001]
[1756264079810,12.35720367,4584.6,4584.5,0.001]
[1756264080511,12.66990367,4584.6,4584.5,0.001]
[1756264081818,12.35720367,4584.6,4584.5,0.3074]
[1756264081988,5.63142582,4584.6,4584.5,0.7729]
[1756264082184,0.45021045,4584.6,4584.5,0.7729]
[1756264082704,2.63142582,4584.6,4584.5,0.7729]
[1756264085214,2.63142582,4584.6,4584.5,0.3074]
[1756264085596,2.63142582,4584.6,4584.5,0.7729]
[1756264086381,2.63142582,4584.6,4584.5,0.3074]
[1756264086696,12.65102386,4584.6,4584.5,0.001]
[1756264086895,12.30961341,4584.6,4584.5,0.001]
[1756264088023,12.78161341,4584.6,4584.5,0.001]
[1756264089080,12.30961341,4584.6,4584.5,0.001]
[1756264089286,13.05203051,4584.6,4584.5,0.001]
[1756264089714,2.18154846,4583.9,4583.3,0.4655]
[1756264090022,2.7266509,4583.9,4583.3,0.4655]
[1756264090315,2.7266509,4583.9,4583.8,0.3264]
[1756264090887,3.06808839,4583.9,4583.8,0.3264]
[1756264091087,3.06808839,4583.9,4583.8,0.02]
[1756264091314,6.40805774,4583.9,4583.8,0.02]
[1756264091614,6.38078839,4583.9,4583.8,0.02]
[1756264092993,2.18169124,4583.6,4583.5,0.001]
[1756264093203,11.51340618,4583.6,4583.5,0.001]
[1756264093401,11.82610618,4583.6,4583.5,0.001]
[1756264094024,5.29049124,4583.6,4583.5,0.7729]
[1756264094234,5.29049124,4583.6,4583.5,0.3074]
[1756264094421,5.29049124,4583.6,4583.5,0.7729]
[1756264095039,5.29049124,4583.6,4583.5,0.3074]
[1756264095238,5.72679368,4583.6,4583.5,0.001]
[1756264095534,6.03949368,4583.6,4583.5,0.001]
[1756264096143,5.72679368,4583.6,4583.5,0.3074]
[1756264096911,2.29049124,4583.6,4583.5,0.7729]
[1756264097110,0.1088,4583.6,4583.5,0.7729]
[1756264097634,2.29049124,4583.6,4583.5,0.7729]
[1756264098431,2.29049124,4583.6,4583.5,0.3074]
[1756264098626,2.77184582,4583.6,4583.5,0.3074]
[1756264098821,2.77184582,4583.6,4583.5,0.7729]
[1756264099037,2.29049124,4583.6,4583.5,0.7729]
[1756264100904,2.29049124,4583.6,4583.5,0.3074]
[1756264101207,11.82610618,4583.6,4583.5,0.001]
[1756264101710,12.29810618,4583.6,4583.5,0.001]
[1756264102631,11.82610618,4583.6,4583.5,0.001]
[1756264103437,12.29810618,4583.6,4583.5,0.001]
[1756264103735,11.82610618,4583.6,4583.5,0.001]
[1756264104136,5.29049124,4583.6,4583.5,0.3074]
[1756264104909,5.29049124,4583.6,4583.5,0.001]
[1756264105109,6.03770093,4583.6,4583.5,0.001]
[1756264105731,6.03770093,4583.6,4583.5,0.3074]
[1756264105931,6.03770093,4583.6,4583.5,0.7729]
[1756264106517,6.03770093,4583.6,4583.5,0.001]
[1756264106518,6.35040093,4583.6,4583.5,0.001]
[1756264106720,5.92890093,4583.6,4583.5,0.3074]
[1756264106937,5.92890093,4583.6,4583.5,0.7729]
[1756264106938,6.03770093,4583.6,4583.5,0.7729]
[1756264107811,6.37918784,4583.6,4583.5,0.7729]
[1756264110130,6.37918784,4583.6,4583.5,0.3074]
[1756264111347,6.37918784,4583.6,4583.5,0.001]
[1756264111548,7.13858784,4583.6,4583.5,0.001]
[1756264111923,6.68978784,4583.6,4583.5,0.001]
[1756264112123,7.13858784,4583.6,4583.5,0.001]
[1756264113650,10.89909684,4583.6,4583.5,0.001]
[1756264114150,2.18192926,4583.1,4583.0,0.001]
[1756264114351,2.29072926,4583.1,4583.0,0.001]
[1756264114550,2.60132926,4583.1,4583.0,0.001]
[1756264114951,2.94283762,4583.1,4583.0,0.001]
[1756264115253,3.39163762,4583.1,4583.0,0.001]
[1756264115454,2.94283762,4583.1,4583.0,0.001]
[1756264115832,6.69004731,4583.1,4583.0,0.001]
[1756264116232,6.37944731,4583.1,4583.0,0.001]
[1756264116449,6.37944731,4583.1,4583.0,0.306]
[1756264116621,6.37944731,4583.1,4583.0,0.7705]
[1756264116622,5.63223762,4583.1,4583.0,0.7705]
[1756264117554,5.63223762,4583.1,4583.0,0.306]
[1756264117851,5.63223762,4583.1,4583.0,0.001]
[1756264118945,5.94283762,4583.1,4583.0,0.001]
[1756264119458,5.63223762,4583.1,4583.0,0.001]
[1756264119661,5.94283762,4583.1,4583.0,0.001]
[1756264119863,2.18207209,4582.8,4582.7,1.37800001]
[1756264120038,5.60147209,4582.8,4582.7,1.37800001]
[1756264120238,5.29087209,4582.8,4582.7,1.37800001]
[1756264120441,6.08304175,4582.8,4582.7,1.68300001]
[1756264120636,2.18240544,4582.1,4582.0,1.679]
[1756264120847,2.18240544,4582.1,4582.0,2.4485]
[1756264121162,2.29120544,4582.1,4582.0,2.4485]
[1756264122540,2.18240544,4582.1,4582.0,2.4485]
[1756264122740,0.1088,4582.2,4582.0,2.4485]
[1756264122741,2.29116,4582.2,4582.0,2.4485]
[1756264122952,2.29116,4582.2,4582.1,0.4645]
[1756264123162,2.63269782,4582.2,4582.1,0.4645]
[1756264123377,2.63269782,4582.2,4582.1,0.7695]
[1756264123972,0.34153782,4582.2,4582.1,1.01635]
[1756264124277,2.52389563,4582.2,4582.1,1.01635]
[1756264124571,0.34153782,4582.2,4582.1,1.01635]
[1756264124773,2.52389563,4582.2,4582.1,1.01635]
[1756264125273,0.34153782,4582.2,4582.1,1.01635]
[1756264125874,0.1088,4582.5,4582.1,1.01635]
[1756264126073,0.1088,4582.5,4582.2,0.74520161]
[1756264126281,2.29102742,4582.5,4582.3,3.668]
[1756264126474,2.29102742,4582.5,4582.4,0.305]
[1756264126779,2.29102742,4582.5,4582.4,4.4375]
[1756264126979,2.29102742,4582.5,4582.4,0.7695]
[1756264127180,2.29102742,4582.5,4582.4,4.4385]
[1756264128865,2.29102742,4582.5,4582.4,4.4375]
[1756264129243,2.29102742,4582.5,4582.1,0.001]
[1756264129244,2.18231112,4582.3,4582.1,0.001]
[1756264129447,2.29115781,4582.2,4582.1,4.1335]
[1756264129647,2.29115781,4582.2,4582.1,4.4385]
[1756264130772,2.29115781,4582.2,4582.1,3.974]
[1756264131746,2.29115781,4582.2,4582.1,0.306]
[1756264131947,2.29115781,4582.2,4582.1,3.975]
[1756264132176,2.29115781,4582.2,4582.1,3.67]
[1756264133082,2.60175781,4582.2,4582.1,3.669]
[1756264133298,2.29115781,4582.2,4582.1,0.306]
[1756264133659,2.29115781,4582.2,4582.1,0.001]
[1756264134074,2.60175781,4582.2,4582.1,0.001]
[1756264135585,2.60175781,4582.2,4582.1,3.668]
[1756264136696,3.05055781,4582.2,4582.1,3.668]
[1756264137289,2.60175781,4582.2,4582.1,3.668]
[1756264137496,12.39269117,4582.2,4582.1,0.001]
[1756264137664,12.84149117,4582.2,4582.1,3.668]
[1756264137862,12.84149117,4582.2,4582.1,0.001]
[1756264137863,13.18305533,4582.2,4582.1,0.001]
[1756264138062,12.73425533,4582.2,4582.1,0.001]
[1756264138265,13.17415533,4582.2,4582.1,0.001]
[1756264140096,12.73425533,4582.2,4582.1,0.001]
[1756264140266,5.63272197,4582.2,4582.1,0.001]
[1756264140466,2.63272197,4582.2,4582.1,0.7755]
[1756264140695,2.63272197,4582.2,4582.1,4.4435]
[1756264140927,0.656336,4583.5,4582.1,4.45466828]
[1756264141062,2.18212489,4582.7,4582.2,0.5685]
[1756264141265,2.18212489,4582.7,4582.6,0.3148]
[1756264141495,2.18212489,4582.7,4582.6,3.9828]
[1756264141696,2.18212489,4582.7,4582.6,3.668]
[1756264141902,2.18212489,4582.7,4582.3,0.4597]
[1756264141903,2.18226256,4582.4,4582.3,0.4597]
[1756264142067,2.18219554,4582.6,4582.3,0.7745]
[1756264142266,0.1088,4582.9,4582.4,4.1267]
[1756264142508,0.1088,4582.9,4582.8,0.3148]
[1756264142716,2.29082448,4582.9,4582.8,0.3148]
[1756264143013,0.1088,4582.9,4582.8,6.1225]
[1756264143384,2.29082448,4582.9,4582.8,6.1225]
[1756264143626,0.1088,4582.9,4582.8,6.1225]
[1756264143781,2.1818466,4583.3,4582.8,6.73475]
[1756264144104,0.1088,4583.4,4582.8,6.73475]
[1756264144105,2.18192964,4583.1,4582.9,0.4597]
[1756264144311,2.18189028,4583.2,4583.0,0.7745]
[1756264144510,0.1088,4583.4,4583.0,0.3148]
[1756264144511,2.18184055,4583.3,4583.0,0.3148]
[1756264144807,2.18184055,4583.3,4583.1,0.4597]
[1756264145115,2.18184055,4583.3,4582.8,5.348]
[1756264145116,2.29060191,4583.4,4583.2,0.7745]
[1756264145412,0.1088,4583.4,4583.3,4.1277]
[1756264145614,2.29058644,4583.4,4583.3,4.4425]
[1756264146215,0.1088,4583.4,4583.3,4.4425]
[1756264146376,2.18178644,4583.4,4583.3,4.4425]
[1756264146926,2.18178644,4583.4,4583.3,3.9828]
[1756264147104,2.18178644,4583.4,4583.3,3.668]
[1756264147417,2.18185724,4583.3,4583.1,0.1088]
[1756264147582,6.22291494,4583.4,4583.2,0.3148]
[1756264147785,2.91492553,4583.3,4583.2,3.9818]
[1756264148089,2.29263404,4583.3,4583.2,3.9818]
[1756264148306,0.1108,4583.3,4583.2,4.4415]
[1756264148512,2.29263404,4583.3,4583.2,4.4415]
[1756264150197,0.002,4583.3,4583.2,4.4415]
[1756264150528,0.002,4583.3,4583.2,0.7745]
[1756264150529,2.18383404,4583.3,4583.2,0.7745]
[1756264150691,2.18383404,4583.3,4583.2,4.4415]
[1756264152034,2.18383404,4583.3,4583.2,3.9818]
[1756264152721,2.1819197,4583.2,4582.8,1.679]
[1756264152898,2.18383721,4583.3,4583.2,0.3148]
[1756264153633,2.18197687,4583.0,4582.9,3.667]
[1756264153824,2.18193502,4583.1,4582.9,3.9818]
[1756264154025,2.18193502,4583.1,4582.9,4.4415]
[1756264154223,2.18193502,4583.1,4583.0,0.4597]
[1756264154735,2.18193502,4583.1,4583.0,0.7745]
[1756264155129,2.29267988,4583.3,4583.0,0.7745]
[1756264155335,2.18188486,4583.2,4583.1,0.4597]
[1756264155547,2.18188486,4583.2,4583.1,4.1237]
[1756264155843,0.002,4583.3,4583.1,4.4385]
[1756264156052,0.002,4583.3,4583.2,0.4597]
[1756264156053,2.18383404,4583.3,4583.2,0.4597]
[1756264156219,2.18383404,4583.3,4583.2,0.7745]
[1756264156749,0.002,4583.3,4583.2,0.7745]
[1756264158748,0.002,4583.3,4583.2,0.8833]
[1756264159051,0.002,4583.3,4583.2,1.33803]
[1756264161930,0.002,4583.3,4583.2,0.8833]
[1756264162130,0.002,4583.3,4583.2,4.5463]
[1756264162583,2.47203404,4583.3,4583.2,3.7718]
[1756264162733,3.02073404,4583.3,4583.2,3.663]
[1756264163178,2.58083404,4583.3,4583.2,3.663]
[1756264165699,2.18202448,4582.9,4582.8,1.679]
[1756264165872,2.47022448,4582.9,4582.8,5.342]
[1756264166872,2.18202448,4582.9,4582.8,5.342]
[1756264168092,2.18202448,4582.9,4582.8,1.679]
[1756264168093,2.47932448,4582.9,4582.8,1.679]
[1756264168391,2.47932448,4582.9,4582.8,5.342]
[1756264169095,2.94992448,4582.9,4582.8,5.342]
[1756264170402,2.47932448,4582.9,4582.8,5.342]
[1756264171200,2.18202448,4582.9,4582.8,5.6527]
[1756264171590,2.18202448,4582.9,4582.8,5.342]
[1756264173291,2.18202448,4582.9,4582.8,5.6527]
[1756264173983,2.18202448,4582.9,4582.8,5.342]
[1756264174300,2.47932448,4582.9,4582.8,5.342]
[1756264174504,2.94992448,4582.9,4582.8,5.342]
[1756264177095,3.57191066,4582.9,4582.8,1.679]
[1756264177405,3.57191066,4582.9,4582.6,0.001]
[1756264177406,2.18211971,4582.7,4582.6,0.001]
[1756264177775,2.95001971,4582.7,4582.6,3.664]
[1756264177972,2.95001971,4582.7,4582.6,0.001]
[1756264177973,3.50038009,4582.7,4582.6,0.001]
[1756264178173,6.52765658,4582.7,4582.6,0.001]
[1756264178406,6.50038009,4582.7,4582.6,1e-08]
[1756264180515,6.84196257,4582.7,4582.6,1e-08]
[1756264182513,6.37136257,4582.7,4582.6,1e-08]
[1756264182813,6.84196257,4582.7,4582.6,1e-08]
[1756264183597,6.37136257,4582.7,4582.6,1e-08]
[1756264184002,6.84196257,4582.7,4582.6,1e-08]
[1756264184331,7.11237967,4582.7,4582.6,1e-08]
[1756264184492,6.77079719,4582.7,4582.6,1e-08]
[1756264184695,6.85832419,4582.7,4582.6,1e-08]
[1756264185403,6.58790709,4582.7,4582.6,1e-08]
[1756264185606,10.25190709,4582.7,4582.6,1e-08]
[1756264186311,2.18231019,4582.3,4582.2,1e-08]
[1756264186515,15.207304,4582.3,4582.2,1e-08]
[1756264186745,15.94792513,4582.3,4582.2,1e-08]
[1756264187324,15.47732513,4582.3,4582.2,1e-08]
[1756264187646,9.62901494,4582.3,4582.2,1e-08]
[1756264187846,10.17937532,4582.3,4582.2,1e-08]
[1756264188345,12.36168551,4582.3,4582.2,1e-08]
[1756264188553,12.83228551,4582.3,4582.2,1e-08]
[1756264188761,13.1738721,4582.3,4582.2,1e-08]
[1756264188959,16.8398721,4582.3,4582.2,1e-08]
[1756264189454,13.1738721,4582.3,4582.2,1e-08]
[1756264192265,12.7032721,4582.3,4582.2,1e-08]
[1756264192460,13.1738721,4582.3,4582.2,1e-08]
[1756264193738,12.4059721,4582.3,4582.2,1e-08]
[1756264193971,12.7032721,4582.3,4582.2,1e-08]
[1756264195474,13.1738721,4582.3,4582.2,1e-08]
[1756264198170,16.8388721,4582.3,4582.2,1e-08]
[1756264198372,17.7692892,4582.3,4582.2,1e-08]
[1756264198582,17.7692892,4582.3,4580.6,0.4444]
[1756264198583,2.18254834,4581.8,4580.8,0.4644]
[1756264198779,0.1088,4580.9,4580.8,0.4644]
[1756264198948,0.1088,4580.9,4580.8,0.7693]
[1756264198949,2.29177714,4580.9,4580.8,0.7693]
[1756264199351,2.29177714,4580.9,4580.8,0.3249]
[1756264199853,2.29177714,4580.9,4580.8,0.02]
[1756264200054,2.29177714,4580.9,4580.8,0.3249]
[1756264200456,2.29177714,4580.9,4580.8,0.02]
[1756264200791,3.04144544,4580.9,4580.8,0.02]
[1756264201380,2.73924544,4580.9,4580.8,0.3249]
[1756264201587,0.1088,4580.9,4580.8,0.7693]
[1756264201795,2.63342878,4580.9,4580.8,0.7693]
[1756264201996,0.45045164,4580.9,4580.8,0.7693]
[1756264202160,2.63342878,4580.9,4580.8,0.7693]
[1756264203468,2.63342878,4580.9,4580.8,1.21273]
[1756264203469,0.45045164,4580.9,4580.8,1.21273]
[1756264203651,0.34165164,4580.9,4580.8,1.21273]
[1756264204065,0.1088,4581.2,4580.8,4.87773]
[1756264204261,0.1088,4581.5,4580.9,1.15048352]
[1756264204576,0.1088,4581.5,4581.4,0.3049]
[1756264204982,0.1088,4582.0,4581.4,0.7493]
[1756264205285,2.18264361,4581.6,4581.5,0.4444]
[1756264205577,2.18264361,4581.6,4581.5,0.97638299]
[1756264205878,0.1088,4582.0,4581.5,0.97638299]
[1756264206052,2.18236253,4582.2,4581.6,4.12157328]
[1756264206260,2.18236253,4582.2,4582.1,0.3049]
[1756264206579,2.18236253,4582.2,4582.1,0.7493]